Cogmind - Beta 13 *** ADVENTURER MODE // 2024.04.01 @ 19:57:28 // Winter2022/Polymind Player: Compilatron Result: Destroyed by S-10 Pest with Light Assault Rifle Performance ------------- Evolutions (1) 500 Regions Visited (2) 400 Robots Destroyed (8) 40 Value Destroyed (287) 287 Prototype IDs (0) 0 Alien Tech Used (0) 0 Bonus (1801) 1801 TOTAL SCORE: 2628 Bonus ------- Polymind Skill 1601 Pacifist 200 Cogmind --------- Core Integrity 0/400 Matter 0/0 Energy 200/200 System Corruption 0% Temperature Cool (0) Movement Walking (120) Location -9/Materials Parts ------- > --- POWER (1) -------- Ion Engine > --- PROPULSION (2) --- Aluminum Leg Aluminum Leg > --- UTILITY (1) ------ Heat Sink > --- WEAPON (1) ------- Small Laser > --- INVENTORY (1) ---- Improved Treads Peak State ------------ > --- POWER ------------ Improved Ion Engine > --- PROPULSION ------- Improved Aluminum Leg Improved Aluminum Leg > --- UTILITY ---------- Melee Analysis Suite Core Shielding > --- WEAPON ----------- Katana > --- INVENTORY -------- (None) [Rating: 13] Favorites ----------- Power Improved Ion Engine Engine Improved Ion Engine Propulsion Light Treads Treads Light Treads Leg Aluminum Leg Wheel Wheel Hover Unit Hover Unit Utility Heat Sink Device Heat Sink Storage Medium Matter Pod Processor Terrain Scan Processor Hackware Hacking Suite Protection Light Armor Plating Weapon Beam Rifle Energy Gun Beam Rifle Ballistic Gun Heavy Assault Rifle Special Weapon Welding Torch Slashing Weapon Katana Special Melee Weapon Datajack Build | -11 -10 -9 ------- Run | Yrd Mat Mat Slots Evolved . | . . . Power . | . . . Propulsion . | . . . Utility . | . . . Weapon . | . . . Parts Attached . | . . . Power . | . . . Engine . | . . . Core . | . . . Reactor . | . . . Propulsion . | . . . Treads . | . . . Leg . | . . . Wheel . | . . . Hover . | . . . Flight . | . . . Utility . | . . . Device . | . . . Storage . | . . . Processor . | . . . Hackware . | . . . Protection . | . . . Artifact . | . . . Weapon . | . . . Energy Gun . | . . . Energy Cannon . | . . . Ballistic Gun . | . . . Ballistic Cannon . | . . . Launcher . | . . . Special Weapon . | . . . Impact Weapon . | . . . Slashing Weapon . | . . . Piercing Weapon . | . . . Special Melee Weapon . | . . . Unidentified Prototypes . | . . . Parts Lost 3 | . . 3 Power . | . . . Propulsion 2 | . . 2 Utility . | . . . Weapon 1 | . . 1 Highest Loss Streak 2 | . . 2 To Critical Strikes . | . . . Average Slot Usage (%) 92 | . 55 95 Engine 14 | . 11 14 Treads 14 | . . 16 Leg 6 | . . 6 Wheel 5 | . 23 3 Hover 2 | . . 2 Device 18 | . 6 19 Storage 2 | . 8 1 Hackware 1 | . . 1 Protection 7 | . . 7 Energy Gun 10 | . . 10 Ballistic Gun 7 | . . 7 Special Melee Weapon 1 | . . 1 Naked Turns 67 | . 60 7 Heaviest Build 18 | . 6 18 Greatest Support 40 | 3 20 40 Greatest Overweight (x) 1 | . . 1 Average Overweight (x) . | . . . Largest Inventory Capacity 1 | . 1 1 Average Capacity . | . . . Most Carried 1 | . . 1 Average Carried . | . . . Final Capacity 1 | . 1 1 Final Carried 1 | . . 1 Class Distribution -------------------- 59% | Sentry 14% | Grunt 11% | Worker 8% | Operator 3% | Cogmind Dominant Class ---------------- Cogmind | -10/Materials Sentry | -9/Materials Resources | -11 -10 -9 ----------- Run | Yrd Mat Mat Matter Collected 92 | . . 92 Remotely . | . . . Salvage Created 226 | . . 226 Parts 12 | . . 12 Haulers Intercepted . | . . . Recyclers Shooed . | . . . Parts Field Recycled . | . . . Retrieved Matter . | . . . Parts Self-Destructed . | . . . Prevented . | . . . Kills | -11 -10 -9 ------- Run | Yrd Mat Mat Combat Hostiles Destroyed 7 | . . 7 Melee 3 | . . 3 Guns 4 | . . 4 Classes Destroyed 3 | . . 3 Watcher 1 | . . 1 Grunt 4 | . . 4 Sentry 3 | . . 3 Best Kill Streak 4 | . . 4 Combat Bots Only 4 | . . 4 Max Kills in Single Turn 1 | . . 1 Gunslinging . | . . . Exploded . | . . . Melee 1 | . . 1 Uniques/NPCs Destroyed . | . . . Combat | -11 -10 -9 -------- Run | Yrd Mat Mat Hostile Shots Fired 135 | . 28 107 Missed 37 | . 8 29 Damage Taken 1019 | . 121 898 Core 469 | . 67 402 Absorbed by Shields . | . . . Redirected to Shielding 2 | . . 2 Ignored by Resistances 241 | . 40 201 Core Remaining (%) 86 | 100 73 . Volleys Fired 35 | . 1 34 Largest 2 | . 1 2 Hottest 79 | . 20 79 Shots Fired 43 | . 1 42 Gun 42 | . . 42 Cannon . | . . . Launcher . | . . . Special 1 | . 1 . Kinetic 8 | . . 8 Thermal 35 | . 1 34 Explosive . | . . . Electromagnetic . | . . . Robot Hit Streak 19 | . . 19 Robot Miss Streak 2 | . . 2 Penetration Max . | . . . Secondary Targets 1 | . . 1 Max Gunslinging Chain 1 | . . 1 Shots Hit Robots 43 | . . 43 Core Hits 14 | . . 14 Critical Kills . | . . . Critical Parts Destroyed . | . . . Critical Strikes . | . . . Melee Attacks 12 | . . 12 Impact . | . . . Slashing 4 | . . 4 Piercing . | . . . Sneak Attacks 1 | . . 1 Combat Hostiles . | . . . Follow-up Attacks . | . . . Damage Inflicted 650 | . . 650 Guns 476 | . . 476 Cannons . | . . . Explosions . | . . . Melee 140 | . . 140 Ramming 34 | . . 34 Kinetic 118 | . . 118 Thermal 358 | . . 358 Explosive . | . . . Electromagnetic . | . . . Impact . | . . . Slashing 140 | . . 140 Piercing . | . . . Highest Corruption . | . . . Average Corruption . | . . . Corruption Purged . | . . . Corruption Blocked . | . . . Overload Shots . | . . . Overflow Damage 8 | . . 8 Projectiles . | . . . Explosions . | . . . Melee 8 | . . 8 Knockbacks 1 | . . 1 Impact 1 | . . 1 Kinetic . | . . . Secondary . | . . . Self-Inflicted Damage 16 | . . 16 Shots . | . . . Rammed 5 | . . 5 Targets Rammed 6 | . . 6 Kicked 1 | . . 1 Crushed . | . . . Highest Temperature 38 | . 10 38 Average Temperature 17 | . 6 18 Received Heat Transfer 309 | . . 309 Siege Activations . | . . . Robots Corrupted . | . . . Combat Hostiles . | . . . Parts Fried . | . . . Impact Corruptions . | . . . Robots Melted . | . . . Combat Hostiles . | . . . Parts Melted 5 | . . 5 Heat Transferred 784 | . . 784 Parts Sabotaged . | . . . Parts Stolen . | . . . Parts Stripped . | . . . Power Chain Reactions . | . . . Alert | -11 -10 -9 ------- Run | Yrd Mat Mat Peak Influence 240 | . 240 164 Initial 86 | . . 86 Average 72 | . 71 73 Maximum Alert Level 1 | . 1 . Low Security (%) 98 | 100 79 100 Level 1 1 | . 20 . Level 2 . | . . . Level 3 . | . . . Level 4 . | . . . Level 5 . | . . . High Security . | . . . Max Security . | . . . Squads Dispatched 3 | . 1 2 Investigation 1 | . 1 . Extermination . | . . . Reinforcement 2 | . . 2 Assault . | . . . Garrison . | . . . Intercept . | . . . Searches Triggered . | . . . Construction Impeded . | . . . Haulers Reinforced . | . . . Active Scanning Responses . | . . . Cargo Convoy Interrupts . | . . . Stealth | -11 -10 -9 --------- Run | Yrd Mat Mat Distress Signals 3 | . 1 2 Communications Jammed . | . . . Distress Signals . | . . . Times Spotted 38 | . 11 27 Peak Tracking Total 6 | . 6 4 Tactical Retreats 1 | . . 1 Traps | -11 -10 -9 ------- Run | Yrd Mat Mat Traps Triggered 1 | . 1 . Indirectly . | . . . Trap Hack Attempts . | . . . Triggered . | . . . Disarmed . | . . . Reprogrammed . | . . . Reused . | . . . Traps Extracted . | . . . Installed . | . . . Triggered . | . . . Machines | -11 -10 -9 ---------- Run | Yrd Mat Mat Machines Disabled . | . . . Max in Single Turn . | . . . Machines Repaired . | . . . Machines Dismantled . | . . . Machines Sabotaged . | . . . Overloaded Fab Kills . | . . . Hacking | -11 -10 -9 --------- Run | Yrd Mat Mat Machines Accessed 1 | . . 1 Terminals 1 | . . 1 Fabricators . | . . . Repair Stations . | . . . Recycling Units . | . . . Scanalyzers . | . . . Garrison Access . | . . . Total Hacks 8 | . . 8 Successful 5 | . . 5 Failed 3 | . . 3 Catastrophic . | . . . Database Lockouts . | . . . Manual . | . . . Terminals 8 | . . 8 Fabricators . | . . . Repair Stations . | . . . Recycling Units . | . . . Scanalyzers . | . . . Garrison Access . | . . . Terminal Hacks 5 | . . 5 Robot Analysis 1 | . . 1 Branch Access Points 1 | . . 1 Locate Traps 1 | . . 1 Patrol Status 1 | . . 1 Investigation Status 1 | . . 1 Fabricator Hacks . | . . . Repair Station Hacks . | . . . Recycling Unit Hacks . | . . . Scanalyzer . | . . . Garrison Access Hacks . | . . . Unauthorized Hacks . | . . . Terminals . | . . . Fabricators . | . . . Repair Stations . | . . . Recycling Units . | . . . Scanalyzers . | . . . Garrison Access . | . . . Data Cores Recovered . | . . . Used . | . . . Hacking Detections 1 | . . 1 Full Trace Events 1 | . . 1 Feedback Events . | . . . Feedback Blocked . | . . . Robot Schematics Acquired . | . . . Robots Built . | . . . Authchips . | . . . Time . | . . . Total Robot Build Rating . | . . . Part Schematics Acquired . | . . . Parts Built . | . . . Authchips . | . . . Time . | . . . Total Part Build Rating . | . . . Parts Repaired . | . . . Time . | . . . Parts Recycled . | . . . Recycled Matter . | . . . Retrieved Matter . | . . . Retrieved Components . | . . . Parts Scanalyzed . | . . . Part Schematics Acquired . | . . . Parts Damaged . | . . . Bothacking | -11 -10 -9 ------------ Run | Yrd Mat Mat Used RIF Installer . | . . . Robots Hacked 7 | . 1 6 Non-combat 3 | . 1 2 Combat 4 | . . 4 Robot Hacks Applied 7 | . 1 6 map_walls 1 | . 1 . find_recycling 1 | . . 1 find_terminals 1 | . . 1 find_shortcuts 4 | . . 4 Relay Couplers Released . | . . . Fabnet Peak Effective % . | . . . Robots Rewired . | . . . Allies Hacked . | . . . Hacks Repelled . | . . . Allies | -11 -10 -9 -------- Run | Yrd Mat Mat Total Allies . | . . . Largest Group . | . . . Highest-Rated Group . | . . . Highest-Rated Ally . | . . . Total Orders . | . . . Ally Attacks . | . . . Total Damage . | . . . Kills . | . . . Allies Corrupted . | . . . Allies Melted . | . . . Intel | -11 -10 -9 ------- Run | Yrd Mat Mat Robot Analysis Total 7 | . 2 5 Derelict Logs Recovered . | . . . Drone Launches . | . . . Drone Recoveries . | . . . Exploration | -11 -10 -9 ------------- Run | Yrd Mat Mat Turns Passed 1712 | 12 144 1556 Spaces Moved 848 | 24 208 616 Core 218 | 24 113 81 Treads 93 | . . 93 Legs 161 | . . 161 Wheels 264 | . 95 169 Hover 112 | . . 112 Flight . | . . . Fastest Speed 50 | 50 50 50 Average Speed 86 | 50 63 96 Slowest Speed 160 | 50 80 160 Overloaded Moves . | . . . Propulsion Burnouts . | . . . Robots Hopped . | . . . Cave-ins Triggered . | . . . Exploration Rate (%) 32 | 3 53 40 Regions Visited 2 Branch Regions . Pre-discovered Areas . | . . . Known Exits Taken . | . . . Unknown Exits Taken 2 | 1 1 . Scrap Searched . | . . . Spaces Dug . | . . . Terrain Destroyed . | . . . Melee . | . . . Projectile . | . . . AOE . | . . . Terrain Rammed . | . . . Walls Destroyed . | . . . Machines Disabled . | . . . Actions | -11 -10 -9 --------- Run | Yrd Mat Mat Total 1768 | 23 218 1527 Wait 865 | . 9 856 Move 846 | 23 207 616 Hop . | . . . Pick Up 2 | . . 2 Fast Attach . | . . . Attach . | . . . Detach . | . . . Swap . | . . . Drop 1 | . . 1 Fire 35 | . 1 34 Melee 12 | . . 12 Ram 5 | . . 5 Kick 1 | . . 1 Crush . | . . . Escape Stasis . | . . . Rewire 1 | . 1 . Trap . | . . . Miscellaneous . | . . . Route ------- -11/Scrapyard -10/Materials (discovered 3 exits: *Mat x2 / [Sub]) -9/Materials (discovered 3 exits: [*Mat] / Min x2) History --------- Turn | Location | Event 3 | -11/Scrapyard | Discovered new exit (range 15) 13 | -11/Scrapyard | Entered Materials 89 | -10/Materials | Discovered new exit (range 13) 101 | -10/Materials | Discovered new exit (range 11) 148 | -10/Materials | Discovered new exit (range 12) 157 | -10/Materials | Entered another Materials area 1339 | -9/Materials | Discovered new exit (range 10) 1461 | -9/Materials | Identified exit to Mines 1484 | -9/Materials | Core integrity fell below 50% 1614 | -9/Materials | Core integrity fell below 20% 1713 | -9/Materials | Destroyed by S-10 Pest with Light Assault Rifle Last Messages --------------- 01554_ Acquired 3 matter. 01615_ Released control of K-01 Serf. 01616_ Took control of G-34 Mercenary. 01616_ K-01 Serf reactivates. 01616_ K-01 Serf collects debris. 01618_ Kicked G-34 Mercenary out of the way. 01633_ Aluminum Leg melted. 01633_ Heat Sink melted. 01633_ Ion Engine melted. 01633_ G-34 Mercenary destroyed. 01636_ Acquired 10 Protomatter. 01637_ K-01 Serf collects debris. 01682_ Acquired Imp. Treads. 01695_ O-16 Technician distress signal alerts nearby ally. 01695_ O-16 Technician: "IFF HANDSHAKE FAILED. SECURING TERMINAL." 01699_ ALERT: Hostiles spotted, dispatching reinforcements to Terminal M010. 01704_ K-01 Serf cleans the Terminal. Map ----- +----------------------------------------------------+ | | | | | | | | | | | | | ?????????????????????????????????????????????? | | ?????????????????????????????????????????????? | | ?????????????????????????????????????????????? | | ?????????????????????????????????????????????? | | ?????????????????????????????????????????????? | | ?????????????????????????????????????????????? | | ?????????????????????????????????????????????? | | ?????????????????????????????????????????????? | | ?????????????????????????????????????????????? | | ?????????????????????????????????????????????? | | ?????????????????????????????????????????????? | | ??????????#??????????????????????????????????? | | ??????????? ?????????????????????????????????? | | ???????????? ???????????????????????????????? | | ?????????????# ??????????????????????????????? | | ?????????????# #######+######### #?????????? | | ?????????????+ #?????????? | | ?????????????# ??????????? | | ?????????????# ????????????? | | ?????????????# g """ """ ????????????? | | ?????????????######### "Y" """ ???????????? | | ?????????????# ! # """ ""?????????? | | ?????????????# # s ??????? | | ?????????????# """ + s ?????? | | ?????????????# """ # s k ??????? | | ?????????????# """ # ##+##########"T??????? | | ?????????????# # # #?????????????? | | ?????????????# !! # # #?????????????? | | ?????????????# !! + + #?????????????? | | ?????????????# ! # # #?????????????? | | ?????????????# # ## #?????????????? | | ?????????????# # ## #?????????????? | | ?????????????######### ###+#####?????????????? | | ?????????????????????# #?# #?????????????????? | | ?????????????????????# #?# #?????????????????? | | ?????????????????????# #?# #?????????????????? | | ??????????????????####+###+##????????????????? | | ??????????????????# #????????????????? | | ??????????????????# #????????????????? | | ??????????????????# """ """ #????????????????? | | ??????????????????# """ """ #????????????????? | | ??????????????????# """ """ #????????????????? | | ??????????????????# #????????????????? | | ??????????????????# ! #????????????????? | +----------------------------------------------------+ Best States ------------- Heat Dissipation 36 Energy Generation 17 Energy Capacity 215 Matter Stores 100 Matter Capacity 125 Sight Range 16 Terrain Scan Range 14 Terrain Scan Density 85 Armor Coverage 150 Resistance: KI 20 Resistance: TH 20 Resistance: EX 70 Resistance: EM 20 Resistance: I 45 Resistance: S 45 Resistance: P 45 Core Shielding 20 Evasion (%) 55 Melee Accuracy 5 Recoil Reduction 2 Offensive Hacking 20 Item Schematics ----------------- None Robot Schematics ------------------ None Fabricated ------------ Nothing Alien Tech Used ----------------- None Achievements -------------- None Challenges ------------ None Polymind | -11 -10 -9 ---------- Run | Yrd Mat Mat Hosts 9 | . 3 6 Combat Hostiles 4 | . . 4 Allies . | . . . Unique Host Classes 6 | . 2 4 Average Host Suspicion 55 | . 75 53 Unsuspicious Activity 904 | . 22 882 Returns to Shadow 1 | . . 1 Fuzzy Dispatches . | . . . Protomatter Created 63 | . 4 59 Used 107 | . 15 92 Decayed . | . . . Highest Spend 29 | . 5 29 Top 5 Hosts by Kills: L-31 Rogue (-9/Materials: 3) G-34 Mercenary (-9/Materials: 2) Y-45 Defender (-9/Materials: 1) G-34 Mercenary (-9/Materials: 1) Game ------ Seed QuantumBeamPlatform Manual? 0 Play Time 00:11:50 Cumulative 15.4 hours Start 2024.04.01 @ 19:46:23 End 2024.04.01 @ 19:57:28 Sessions 1 Manual Loads 0 Difficulty Adventurer Special Mode Winter2022/Polymind Game No. 14 Rogue 0 Adventurer 12 Explorer 2 Win Type - Total 0 Types 0/0/0/0/0/0/0/0/0 Lore% 23 Gallery% 19 Achievement% 20 Wizard Run 0 Options --------- Layout 1 ASCII 0 Keyboard 0 Movement Numpad Keybinds 0 Fullscreen 1 Font 24/Smallcaps Map View 50x35 Zoom Use 0% Tactical HUD 1 Map Filters NONE Filters NONE Steam 1 RUN: 47d375b1-fb2c-4972-b376-fa6422889923